Cogmind - Beta 14 @@@ ROGUE MODE // 2024.08.20 @ 17:06:15 Player: szymekc Result: Destroyed by 7R-MNS with Wave Gun Performance ------------- Evolutions (3) 1500 Regions Visited (6) 1200 Robots Destroyed (50) 250 Value Destroyed (1150) 1150 Prototype IDs (35) 700 Alien Tech Used (0) 0 Bonus (236) 236 TOTAL SCORE: 5036 Bonus ------- High Alert Combat Kills 2 Aligned with FarCom 300 Friendly Fire -66 Cogmind --------- Core Integrity 0/700 Matter 120/300 Energy 100/100 System Corruption 4% Temperature Warm (154) Movement Core (200) Ox3 Location -7/Factory Parts ------- > --- POWER (1) -------- (None) > --- PROPULSION (4) --- (None) > --- UTILITY (6) ------ Advanced Visual Processing Unit Hacking Suite System Shield > --- WEAPON (2) ------- Assault Cannon Assault Cannon > --- INVENTORY (5) ---- Makeshift Trap Scanner Improved Signal Interpreter Heavy Ion Cannon Proton Missile Launcher Precision Grenade Launcher Peak State ------------ > --- POWER ------------ Enhanced Nuclear Core > --- PROPULSION ------- Light Treads Light Treads > --- UTILITY ---------- High-capacity Storage Unit Advanced Weapon Cycler Improved Light Armor Plating Hacking Suite System Shield > --- WEAPON ----------- AWS/EX-DEC > --- INVENTORY -------- Improved Airjet Makeshift Trap Scanner Advanced Visual Processing Unit Improved Signal Interpreter Seismic Detector Experimental Core Analyzer High-powered Tractor Beam Heavy Ion Cannon Heavy Ion Cannon Heavy Ion Cannon Proton Missile Launcher Precision Grenade Launcher [Rating: 50] Favorites ----------- Power Ion Engine Engine Ion Engine Power Core Light Neutrino Core Propulsion Light Treads Treads Light Treads Leg Aluminum Leg Hover Unit Improved Airjet Utility Medium Armor Plating Device Advanced Weapon Cycler Storage Large Storage Unit Processor Advanced Visual Processing Unit Hackware Hacking Suite Protection Medium Armor Plating Weapon Autogun Energy Gun Improved Medium Laser Energy Cannon Heavy Ion Cannon Ballistic Gun Autogun Ballistic Cannon Assault Cannon Launcher Precision Grenade Launcher Special Weapon Mining Laser Build | -11 -10 -10 -10 -9 -8 -7 ------- Run | Yrd Mat Min Exi Min Mat Fac Slots Evolved 6 | . . . . . 4 2 Power . | . . . . . . . Propulsion 2 | . . . . . 2 . Utility 4 | . . . . . 2 2 Weapon . | . . . . . . . Parts Attached 99 | 4 19 . 23 2 26 25 Power 7 | . 1 . 3 . 1 2 Engine 4 | . 1 . 2 . . 1 Core 3 | . . . 1 . 1 1 Reactor . | . . . . . . . Propulsion 27 | 2 5 . 8 . 4 8 Treads 25 | 2 5 . 8 . 4 6 Leg . | . . . . . . . Wheel . | . . . . . . . Hover 2 | . . . . . . 2 Flight . | . . . . . . . Utility 27 | 1 3 . 7 . 10 6 Device 7 | 1 . . 1 . 5 . Storage 7 | . 1 . 3 . 1 2 Processor 1 | . . . . . . 1 Hackware 2 | . . . . . . 2 Protection 10 | . 2 . 3 . 4 1 Artifact . | . . . . . . . Weapon 38 | 1 10 . 5 2 11 9 Energy Gun 6 | . . . 1 1 2 2 Energy Cannon 3 | . . . . . 1 2 Ballistic Gun 20 | 1 6 . 3 1 7 2 Ballistic Cannon 2 | . . . . . . 2 Launcher 1 | . . . . . . 1 Special Weapon 6 | . 4 . 1 . 1 . Impact Weapon . | . . . . . . . Slashing Weapon . | . . . . . . . Piercing Weapon . | . . . . . . . Special Melee Weapon . | . . . . . . . Unidentified Prototypes 10 | . . . 3 . 3 4 Parts Lost 29 | . . . 9 . 1 19 Power 5 | . . . 1 . 1 3 Propulsion 10 | . . . 2 . . 8 Utility 6 | . . . 3 . . 3 Weapon 8 | . . . 3 . . 5 Highest Loss Streak 9 | . . . 9 . 1 8 To Critical Strikes 3 | . . . 3 . . . Average Slot Usage (%) 94 | . 100 100 93 85 99 78 Engine 7 | . 14 14 11 . . . Core 3 | . . . 2 14 9 3 Treads 29 | . 28 28 27 28 36 21 Device 9 | . 2 . 6 14 17 10 Storage 10 | . 14 14 10 14 9 6 Hackware 1 | . . . . . . 10 Protection 9 | . 11 14 8 . 8 5 Ballistic Gun 18 | . 26 28 20 10 13 10 Special Weapon 2 | . 1 . 3 . 1 . Peak Build Rating 50 | 7 12 12 40 41 39 50 Average Rating 21 | 6 10 12 16 26 34 36 On Entrance 18 | 6 7 12 12 25 25 39 Naked Turns . | . . . . . . . Heaviest Build 80 | 13 38 38 52 39 68 80 Greatest Support 80 | 40 40 40 40 40 80 80 Greatest Overweight (x) 6 | . . . 1 . . 6 Average Overweight (x) . | . . . . . . . Largest Inventory Capacity 20 | 8 15 15 20 15 20 20 Average Capacity 14 | 8 10 15 12 15 19 17 Most Carried 20 | 6 15 15 15 15 20 20 Average Carried 12 | 4 9 15 10 14 17 15 Final Capacity 20 | 8 15 15 15 15 20 5 Final Carried 20 | 6 15 15 15 15 20 5 Class Distribution -------------------- 60% | Mutant 37% | Scavenger-Mutant Dominant Class ---------------- Mutant | -10/Materials Mutant | -10/Mines Mutant | -10/Exiles Scavenger-Mutant | -9/Mines Scavenger-Mutant | -8/Materials Scavenger-Mutant | -7/Factory Resources | -11 -10 -10 -10 -9 -8 -7 ----------- Run | Yrd Mat Min Exi Min Mat Fac Matter Collected 2794 | 268 608 . 819 100 694 305 Remotely . | . . . . . . . Salvage Created 2202 | 211 812 . 361 137 681 . Parts 134 | 13 51 . 32 8 30 . Haulers Intercepted 4 | . 2 . . . 2 . Recyclers Shooed 3 | 2 . . . . 1 . Parts Field Recycled . | . . . . . . . Retrieved Matter . | . . . . . . . Parts Self-Destructed . | . . . . . . . Prevented . | . . . . . . . Kills | -11 -10 -10 -10 -9 -8 -7 ------- Run | Yrd Mat Min Exi Min Mat Fac Combat Hostiles Destroyed 33 | . 17 . 4 3 9 . Guns 31 | . 17 . 4 3 7 . Cannons 2 | . . . . . 2 . Classes Destroyed 10 | 2 5 . 2 . 1 . Builder 2 | . 2 . . . . . Tunneler 5 | 5 . . . . . . Hauler 4 | . 2 . . . 2 . Recycler 2 | 1 . . . . 1 . Watcher 3 | . 3 . . . . . Swarmer 5 | . 5 . . . . . Grunt 20 | . 12 . . 3 5 . Sentry 4 | . . . . . 4 . Zionite 2 | . . . 2 . . . Assembled 3 | . . . 3 . . . Best Kill Streak 7 | 5 7 . 2 3 3 . Combat Bots Only 6 | . 6 . 2 3 3 . Max Kills in Single Turn 1 | 1 1 . 1 1 1 . Gunslinging . | . . . . . . . Exploded . | . . . . . . . Melee . | . . . . . . . Uniques/NPCs Destroyed 4 | . . . 4 . . . 8R-AWN (-10/Exiles) EX-DEC (-10/Exiles) EX-HEX (-10/Exiles) EX-BIN (-10/Exiles) Combat | -11 -10 -10 -10 -9 -8 -7 -------- Run | Yrd Mat Min Exi Min Mat Fac Hostile Shots Fired 390 | . 52 . 93 18 54 173 Missed 62 | . 10 . 11 3 17 21 Damage Taken 5878 | . 407 . 1468 160 575 3268 Core 995 | . 17 . 189 19 70 700 Absorbed by Shields . | . . . . . . . Regen/Repaired (Parts) 220 | . 96 . . . 124 . Core Remaining (%) 65 | 100 . . . 10 87 . Volleys Fired 323 | 14 68 . 145 . 56 40 Largest 2 | 2 2 . 2 . 2 2 Hottest 100 | 40 100 . 100 . 88 88 Shots Fired 514 | 28 129 . 177 5 100 75 Gun 422 | 28 122 . 162 5 76 29 Cannon 70 | . . . . . 24 46 Launcher . | . . . . . . . Special 22 | . 7 . 15 . . . Kinetic 439 | 28 122 . 162 . 73 54 Thermal 63 | . 7 . 15 . 27 14 Explosive . | . . . . . . . Electromagnetic 12 | . . . . 5 . 7 Robot Hit Streak 17 | 8 8 . 17 10 8 11 Robot Miss Streak 3 | 2 3 . 3 1 3 3 Penetration Max . | . . . . . . . Secondary Targets 1 | . 1 . . . . . Max Gunslinging Chain 1 | . 1 . . . . . Autonomous 12 | . . . . 5 . 7 Shots Hit Robots 337 | 20 74 . 115 5 68 55 Core Hits 117 | 12 31 . 32 4 25 13 Critical Kills 2 | . 1 . 1 . . . Critical Parts Destroyed 1 | . . . . . 1 . Critical Strikes 3 | . 1 . 1 . 1 . Destroy 3 | . 1 . 1 . 1 . Melee Attacks . | . . . . . . . Impact . | . . . . . . . Slashing . | . . . . . . . Piercing . | . . . . . . . Sneak Attacks . | . . . . . . . Combat Hostiles . | . . . . . . . Follow-up Attacks . | . . . . . . . Damage Inflicted 5032 | 156 1131 . 1752 153 1339 501 Guns 4156 | 156 1115 . 1752 153 814 166 Cannons 843 | . . . . . 512 331 Explosions . | . . . . . . . Melee . | . . . . . . . Ramming 33 | . 16 . . . 13 4 Kinetic 4103 | 156 1115 . 1752 . 779 301 Thermal 707 | . . . . . 547 160 Explosive . | . . . . . . . Electromagnetic 189 | . . . . 153 . 36 Impact . | . . . . . . . Slashing . | . . . . . . . Piercing . | . . . . . . . Highest Corruption 4 | . . . . . . 4 Average Corruption 3 | . . . . . . 3 Corruption Purged . | . . . . . . . Corruption Blocked . | . . . . . . . Effects 12 | . . . . . . 12 Message Errors 4 | . . . . . . 4 Matter Fused 1 | . . . . . . 1 Energy Discharges 4 | . . . . . . 4 Parts Rejected 1 | . . . . . . 1 Misfires 2 | . . . . . . 2 Overload Shots . | . . . . . . . Overflow Damage 5 | . . . . . 5 . Projectiles 5 | . . . . . 5 . Explosions . | . . . . . . . Melee . | . . . . . . . Knockbacks 4 | . . . . . . 4 Impact . | . . . . . . . Kinetic 4 | . . . . . . 4 Secondary . | . . . . . . . Self-Inflicted Damage . | . . . . . . . Shots . | . . . . . . . Rammed 8 | . 4 . . . 3 1 Targets Rammed 8 | . 4 . . . 3 1 Kicked . | . . . . . . . Crushed . | . . . . . . . Highest Temperature 426 | . 62 . 278 4 181 426 Average Temperature 56 | . 16 . 51 4 57 122 Received Heat Transfer 1566 | . 135 . . 45 288 1098 Effects 3 | . . . 2 . . 1 Interference 2 | . . . 2 . . . Matter Decay 1 | . . . . . . 1 Siege Activations . | . . . . . . . Robots Corrupted . | . . . . . . . Combat Hostiles . | . . . . . . . Parts Fried . | . . . . . . . Impact Corruptions . | . . . . . . . Robots Melted . | . . . . . . . Combat Hostiles . | . . . . . . . Parts Melted 1 | . . . . . 1 . Heat Transferred 885 | . . . . . 777 108 Parts Sabotaged . | . . . . . . . Parts Stolen . | . . . . . . . Parts Stripped . | . . . . . . . Power Chain Reactions . | . . . . . . . Alert | -11 -10 -10 -10 -9 -8 -7 ------- Run | Yrd Mat Min Exi Min Mat Fac Peak Influence 406 | 30 406 115 . 70 196 27 Initial 115 | . 19 115 . . 27 . Average 84 | 10 180 115 . 62 43 4 Maximum Alert Level 2 | . 2 . . . . . Low Security (%) 84 | 100 52 100 . 100 100 100 Level 1 15 | . 45 . . . . . Level 2 . | . 2 . . . . . Level 3 . | . . . . . . . Level 4 . | . . . . . . . Level 5 . | . . . . . . . High Security . | . . . . . . . Max Security . | . . . . . . . Squads Dispatched 11 | . 5 . . . 3 3 Investigation 5 | . 4 . . . . 1 Extermination 1 | . . . . . . 1 Reinforcement 4 | . 1 . . . 2 1 Assault . | . . . . . . . Garrison 1 | . . . . . 1 . Intercept . | . . . . . . . Searches Triggered . | . . . . . . . Construction Impeded . | . . . . . . . Haulers Reinforced 1 | . . . . . . 1 Active Scanning Responses . | . . . . . . . Cargo Convoy Interrupts . | . . . . . . . Stealth | -11 -10 -10 -10 -9 -8 -7 --------- Run | Yrd Mat Min Exi Min Mat Fac Distress Signals 3 | . 1 . . . 1 1 Communications Jammed . | . . . . . . . Distress Signals . | . . . . . . . Times Spotted 74 | . 28 . 19 6 14 7 Peak Tracking Total 9 | . 5 . 9 3 5 2 Tactical Retreats 12 | . 2 . 8 . 2 . Traps | -11 -10 -10 -10 -9 -8 -7 ------- Run | Yrd Mat Min Exi Min Mat Fac Traps Triggered 2 | . 2 . . . . . Indirectly . | . . . . . . . Trap Hack Attempts . | . . . . . . . Triggered . | . . . . . . . Disarmed . | . . . . . . . Reprogrammed . | . . . . . . . Reused . | . . . . . . . Traps Extracted . | . . . . . . . Installed . | . . . . . . . Triggered . | . . . . . . . Machines | -11 -10 -10 -10 -9 -8 -7 ---------- Run | Yrd Mat Min Exi Min Mat Fac Machines Disabled 9 | . 1 . 8 . . . Max in Single Turn 1 | . 1 . 1 . . . Garrison Access 1 | . . . . . 1 . Machines Repaired . | . . . . . . . Machines Dismantled . | . . . . . . . Machines Sabotaged . | . . . . . . . Overloaded Fab Kills . | . . . . . . . Hacking | -11 -10 -10 -10 -9 -8 -7 --------- Run | Yrd Mat Min Exi Min Mat Fac Machines Accessed 24 | . 10 . 2 . 9 3 Terminals 15 | . 7 . . . 6 2 Fabricators . | . . . . . . . Repair Stations 2 | . 1 . . . 1 . Recycling Units 3 | . 2 . . . 1 . Scanalyzers 1 | . . . . . . 1 Garrison Access 1 | . . . . . 1 . Total Hacks 73 | . 34 . 5 . 25 9 Successful 47 | . 23 . 5 . 15 4 Failed 26 | . 11 . . . 10 5 Catastrophic 5 | . 1 . . . 3 1 Database Lockouts . | . . . . . . . Manual 40 | . 23 . 1 . 13 3 Terminals 51 | . 27 . . . 18 6 Fabricators . | . . . . . . . Repair Stations 7 | . 2 . . . 5 . Recycling Units 6 | . 5 . . . 1 . Scanalyzers 3 | . . . . . . 3 Garrison Access 1 | . . . . . 1 . Terminal Hacks 16 | . 6 . 5 . 2 3 Record 4 | . . . 4 . . . Robot Analysis 2 | . 2 . . . . . Prototype ID Bank 1 | . 1 . . . . . Branch Access Points 1 | . . . . . . 1 Terminal Index 2 | . 1 . . . . 1 Unreport Threat 2 | . . . . . 2 . Locate Traps 1 | . 1 . . . . . Hauler Manifests 1 | . . . . . . 1 Zone Layout 1 | . 1 . . . . . Derelict Proto ID Bank 1 | . . . 1 . . . Fabricator Hacks . | . . . . . . . Repair Station Hacks 6 | . 2 . . . 4 . Scan Component 3 | . 1 . . . 2 . Repair 3 | . 1 . . . 2 . Recycling Unit Hacks 3 | . 2 . . . 1 . Retrieve Components 3 | . 2 . . . 1 . Scanalyzer . | . . . . . . . Garrison Access Hacks 1 | . . . . . 1 . Seal Access 1 | . . . . . 1 . Unauthorized Hacks 21 | . 13 . . . 7 1 Terminals 19 | . 11 . . . 7 1 Track 2 | . 2 . . . . . Assimilate 1 | . 1 . . . . . Botnet 1 | . 1 . . . . . Operators 2 | . 1 . . . 1 . Skim 13 | . 6 . . . 6 1 Fabricators . | . . . . . . . Repair Stations . | . . . . . . . Recycling Units 2 | . 2 . . . . . Tunnel 2 | . 2 . . . . . Scanalyzers . | . . . . . . . Garrison Access . | . . . . . . . Data Cores Recovered . | . . . . . . . Used . | . . . . . . . Hacking Detections 16 | . 7 . . . 6 3 Full Trace Events . | . . . . . . . Feedback Events . | . . . . . . . Feedback Blocked . | . . . . . . . Robot Schematics Acquired . | . . . . . . . Robots Built . | . . . . . . . Authchips . | . . . . . . . Time . | . . . . . . . Total Robot Build Rating . | . . . . . . . Part Schematics Acquired . | . . . . . . . Parts Built . | . . . . . . . Authchips . | . . . . . . . Time . | . . . . . . . Total Part Build Rating . | . . . . . . . Parts Repaired 3 | . 1 . . . 2 . Time 126 | . 26 . . . 100 . Parts Recycled . | . . . . . . . Recycled Matter . | . . . . . . . Retrieved Matter . | . . . . . . . Retrieved Components 20 | . 10 . . . 10 . Parts Scanalyzed . | . . . . . . . Part Schematics Acquired . | . . . . . . . Parts Damaged . | . . . . . . . Bothacking | -11 -10 -10 -10 -9 -8 -7 ------------ Run | Yrd Mat Min Exi Min Mat Fac Used RIF Installer . | . . . . . . . Robots Hacked . | . . . . . . . Non-combat . | . . . . . . . Combat . | . . . . . . . Robot Hacks Applied . | . . . . . . . Relay Couplers Released . | . . . . . . . Fabnet Peak Effective % . | . . . . . . . Robots Rewired . | . . . . . . . Allies Hacked . | . . . . . . . Hacks Repelled . | . . . . . . . Allies | -11 -10 -10 -10 -9 -8 -7 -------- Run | Yrd Mat Min Exi Min Mat Fac Total Allies . | . . . . . . . Largest Group . | . . . . . . . Highest-Rated Group . | . . . . . . . Highest-Rated Ally . | . . . . . . . Total Orders . | . . . . . . . Ally Attacks 16 | . . . 16 . . . Total Damage 774 | . . . 774 . . . Kills 8 | . . . 8 . . . Allies Corrupted . | . . . . . . . Allies Melted . | . . . . . . . Turrets Deployed 4 | . . . 4 . . . Intel | -11 -10 -10 -10 -9 -8 -7 ------- Run | Yrd Mat Min Exi Min Mat Fac Robot Analysis Total 2 | . 2 . . . . . Derelict Logs Recovered . | . . . . . . . Drone Launches . | . . . . . . . Drone Recoveries . | . . . . . . . Exploration | -11 -10 -10 -10 -9 -8 -7 ------------- Run | Yrd Mat Min Exi Min Mat Fac Turns Passed 7646 | 91 1501 165 3128 41 1989 731 Spaces Moved 3442 | 19 644 104 1577 20 720 358 Core . | . . . . . . . Treads 3371 | 19 644 104 1577 20 720 287 Legs . | . . . . . . . Wheels . | . . . . . . . Hover 71 | . . . . . . 71 Flight . | . . . . . . . Fastest Speed 50 | 160 160 160 160 160 160 50 Average Speed 159 | 160 160 160 160 160 160 151 Slowest Speed 410 | 160 160 160 240 160 160 410 Overloaded Moves . | . . . . . . . Propulsion Burnouts . | . . . . . . . Robots Hopped . | . . . . . . . Cave-ins Triggered . | . . . . . . . Exploration Rate (%) 41 | 3 89 27 93 6 62 9 Regions Visited 6 Branch Regions 3 Pre-discovered Areas 3 | . 2 . 1 . . . Known Exits Taken 3 | . 1 1 . 1 . . Unknown Exits Taken 3 | 1 . . 1 . 1 . Scrap Searched . | . . . . . . . Spaces Dug 6 | . 6 . . . . . Terrain Destroyed 17 | . 6 . 2 . 5 4 Melee . | . . . . . . . Projectile 17 | . 6 . 2 . 5 4 AOE . | . . . . . . . Terrain Rammed . | . . . . . . . Walls Destroyed . | . . . . . . . Machines Disabled . | . . . . . . . Actions | -11 -10 -10 -10 -9 -8 -7 --------- Run | Yrd Mat Min Exi Min Mat Fac Total 5232 | 58 997 103 2058 30 1491 495 Wait 1210 | 17 230 . 252 5 645 61 Move 3436 | 18 643 103 1576 19 719 358 Hop . | . . . . . . . Pick Up 81 | 3 18 . 33 2 21 4 Fast Attach 18 | . . . 6 . 8 4 Attach 36 | 3 1 . 8 2 9 13 Detach 2 | . . . . . 2 . Swap 46 | 1 18 . 9 . 10 8 Drop 72 | 2 15 . 29 2 18 6 Fire 323 | 14 68 . 145 . 56 40 Melee . | . . . . . . . Ram . | . . . . . . . Kick . | . . . . . . . Crush 8 | . 4 . . . 3 1 Escape Stasis . | . . . . . . . Rewire . | . . . . . . . Trap . | . . . . . . . Miscellaneous . | . . . . . . . Route ------- -11/Scrapyard -10/Materials (discovered 4 exits: *Mat x3 / *Min) -10/Mines (discovered 4 exits: *Mat x2 / *Exi / Sub) -10/Exiles (discovered 2 exits: [*Min x2]) -9/Mines (discovered 2 exits: *Mat x2) -8/Materials -7/Factory (discovered 7 exits: *Fac x3 / Sto x2 / Low x2) History --------- Turn | Location | Event 16 | -11/Scrapyard | Discovered new exit (range 3) 92 | -11/Scrapyard | Entered Materials 170 | -10/Materials | Discovered new exit (range 13) 313 | -10/Materials | Build established: Mutant 463 | -10/Materials | Discovered new exit (range 12) 527 | -10/Materials | Discovered new exit (range 17) 886 | -10/Materials | Discovered new exit (range 12) 1091 | -10/Materials | Identified exit to Mines 1125 | -10/Materials | Repaired Lgt. Treads 1160 | -10/Materials | Loaded intel: 1 repair station location 1306 | -10/Materials | Learned location of 2 exits from Mines 1355 | -10/Materials | Learned Storage emergency access door positions 1413 | -10/Materials | Loaded intel: 8 terminal locations 1593 | -10/Materials | Entered Mines 1594 | -10/Mines | Identified exit to Materials 1595 | -10/Mines | Identified exit to Exiles 1595 | -10/Mines | Identified exit to Subcaves 1750 | -10/Mines | Deemed a non-threat by the Exiles lab entrance 1758 | -10/Mines | Entered Exiles 1779 | -10/Exiles | Discovered new exit (range 15) 1802 | -10/Exiles | Met 8R-AWN 1824 | -10/Exiles | Met EX-HEX 1877 | -10/Exiles | Met EX-BIN 1915 | -10/Exiles | Met EX-DEC 1936 | -10/Exiles | Learned location of Zion (-7) 2251 | -10/Exiles | Aligned with FarCom system 2253 | -10/Exiles | Given EX-Vault access code 2289 | -10/Exiles | Opened EX-Vault 2331 | -10/Exiles | Warned to stay clear of 0b10 Research branches 2431 | -10/Exiles | Visited The Gauntlet 2988 | -10/Exiles | Attacked by the Exiles 3205 | -10/Exiles | Core integrity fell below 50% 3218 | -10/Exiles | Destroyed 8R-AWN 3230 | -10/Exiles | Lost 9 parts (1p2n3u3w) 3501 | -10/Exiles | Found Superbattery 3504 | -10/Exiles | Found Deploy-a-Sentry 3507 | -10/Exiles | Found Deploy-a-Sentry 3509 | -10/Exiles | Found Deploy-a-Sentry 3520 | -10/Exiles | Found Lightpack 2.0 3645 | -10/Exiles | Core integrity fell below 20% 3928 | -10/Exiles | DAS Turret deployed 3933 | -10/Exiles | DAS Turret deployed 3948 | -10/Exiles | DAS Turret deployed 4091 | -10/Exiles | Destroyed EX-DEC 4122 | -10/Exiles | DAS Turret deployed 4122 | -10/Exiles | Allies destroyed EX-HEX 4143 | -10/Exiles | Found Prototype Energy Gun 4143 | -10/Exiles | Identified AWS/EX-DEC 4146 | -10/Exiles | Found Prototype Processor 4349 | -10/Exiles | Destroyed EX-BIN 4868 | -10/Exiles | Discovered new exit (range 14) 4886 | -10/Exiles | Entered Mines 4887 | -9/Mines | Identified exit to Materials 4914 | -9/Mines | Build established: Scavenger-Mutant 4927 | -9/Mines | Entered Materials 4927 | -8/Materials | Evolved 4 slots: Propulsion x2, Utility x2 5350 | -8/Materials | Repaired Med. Armor Plating 5420 | -8/Materials | Repaired Adv. Weapon Cycler 5509 | -8/Materials | Garrison activated, responded to threat 6026 | -8/Materials | Discovered new exit (range 13) 6187 | -8/Materials | Met 7R-MNS 6573 | -8/Materials | Learned Factory terminal intel 6633 | -8/Materials | Learned Factory trap positions 6683 | -8/Materials | Learned location of 1 exit from Lower Caves 6724 | -8/Materials | Learned 4 Recycling zone layouts 6753 | -8/Materials | Learned location of 1 exit from Lower Caves 6774 | -8/Materials | Learned Factory emergency access door positions 6787 | -8/Materials | Learned Factory non-interactive machine intel 6810 | -8/Materials | Learned location of 1 exit from Lower Caves 6843 | -8/Materials | Learned Factory garrison access intel 6885 | -8/Materials | Learned location of 3 exits from Factory 6916 | -8/Materials | Entered Factory 6916 | -7/Factory | Evolved 2 slots: Utility x2 6917 | -7/Factory | Caught up to 7R-MNS 6917 | -7/Factory | Identified exit to Storage 6918 | -7/Factory | Identified exit to Factory 6919 | -7/Factory | Loaded intel: 91 trap records 6921 | -7/Factory | Loaded intel: 192 non-interactive machine locations 6922 | -7/Factory | Loaded intel: 25 terminal locations 6923 | -7/Factory | Loaded intel: 4 garrison access locations 7172 | -7/Factory | Identified exit to Lower Caves 7384 | -7/Factory | Attacked by 7R-MNS 7448 | -7/Factory | Lost 8 parts (5n1u2w) 7492 | -7/Factory | Core integrity fell below 50% 7527 | -7/Factory | Lost 4 parts (2n2u) 7618 | -7/Factory | Core integrity fell below 20% 7647 | -7/Factory | Destroyed by 7R-MNS with Wave Gun Last Messages --------------- 07529_ Acquired Imp. Airjet. 07531_ ALERT: Cargo convoy en route, clear transfer corridor. 07538_ Hvy. Ion Cannon destroyed. 07541_ Dropped Hcp. Storage Unit. 07553_ R-06 Scavenger destroyed. 07564_ System corrupted: Energy discharge (-30). 07569_ Y-54 Guardian destroyed. 07569_ Subcomponent Replicator disabled. 07576_ Acquired 41 matter. 07586_ Acquired Assault Cannon. 07594_ Acquired Deuterium Engine. 07602_ System corrupted: Energy discharge (-52). 07603_ 7R-MNS knocked back. 07619_ System corrupted: Energy discharge (-104). 07622_ Deuterium Engine destroyed. 07624_ 7R-MNS knocked back. 07626_ Scanalyzer disabled. 07632_ Imp. Airjet destroyed. 07636_ 7R-MNS knocked back. 07645_ U-05 Engineer builds a Wall. Map ----- +----------------------------------------------------+ | | | | | | | | | | | | | | | | | ?????????????????????????????????????????????????? | | ?????????????????????????????????????????????????? | | ?????????????????????????????????????????????????? | | ?????????????????????????????????????????????????? | | ???###########???????????????????????????????????? | | ???# < #????????????????????????????? | | ???#!#########???????????????????????????????????? | | ???# #??##############???????????????????????????? | | ???# #??# #???????????????????????????? | | ???# #??# #???????????????????????????? | | #### #### = ##########??????????????????? | | + =%! # """" #??????????????????? | | ####### !!! # "" "" #??????????????????? | | #?????# ""!%"" # "" "" #??????????????????? | | ####### ""=!"" # #??????????????????? | | + """ "" # #??????????????????? | | # """ """! # !]] #??????????????????? | | # """ """!! # !@ ! #??????????????????? | | + ! # % #??????????????????? | | ######## # #??????????????????? | | ???????###########+#####;;#;#########???????????? | | ??????????????# u #???????????? | | ?????????????## % #???????????? | | ?????????????# %g% #???????????? | | ???########??#T %% #???????????? | | +??? # % % #???????????? | | ????? # #####+###########???????????? | | ??????? ?# #??? #??????????????????? | | ??????? # #?? #??????????????????? | | ??????? # ^^^^# #??????????????????? | | ??????? ?# + #??????????????????? | | ??????? # # #??????????????????? | | ?????? ? # #?? #??????????????????? | | ????# ??? ?# #??? #??????????????????? | | ????#????? ?# #??? #??????????????????? | | ??+??????? ??# #??? ! #??????????????????? | | ??????????# ??# #???#####???????????????????? | | ???????????#???# #?? ???????????????????? | | ???????????????# #??""" """??????????????????? | | ???????????????# #? """ """??????????????????? | | ???????????????# #? """ """??????????????????? | | ??############## # ???????????????????? | +----------------------------------------------------+ Best States ------------- Heat Dissipation 41 Energy Generation 19 Energy Capacity 310 Matter Stores 450 Matter Capacity 450 Sight Range 20 Terrain Scan Density 10 Armor Coverage 450 Weapon Cycling 25 Evasion (%) 55 Recoil Reduction 4 Offensive Hacking 10 Defensive Hacking 10 Item Schematics ----------------- None Robot Schematics ------------------ None Fabricated ------------ Nothing Alien Tech Used ----------------- None Achievements -------------- None Challenges ------------ None Game ------ Seed ParticleZhirovFlightbrick Manual? 0 Play Time 00:54:28 Cumulative 359.8 hours Start 2024.08.20 @ 16:05:59 End 2024.08.20 @ 17:06:15 Sessions 1 Manual Loads 0 Difficulty Rogue Special Mode None Game No. 132 Rogue 130 Adventurer 2 Explorer 0 Win Type - Total 16 Types 6/0/8/1/0/0/0/1/0 Lore% 73 Gallery% 84 Achievement% 75 Wizard Run 0 Options --------- Layout 0 ASCII 0 Keyboard 0 Movement Numpad Keybinds 0 Fullscreen 2 Font 24/Smallcaps Map View 76x50 Zoom Use 0% Tactical HUD 1 Map Filters NONE Filters NONE Steam 1 RUN: cf56fe61-6337-47e6-9885-c7cccf1549cb